bitfinex/quotes_ETHUSD_20241217
["timestamp","ask_amount","ask_price","bid_price","bid_amount"]
[1734447942557,3.16946184,3992.5,3989.1,1.5797]
[1734447942558,1.5886,3991.7,3989.1,1.5797]
[1734447942740,1.5886,3991.5,3989.1,1.5797]
[1734447942952,1.5886,3991.3,3989.1,1.5797]
[1734447943190,0.03132527,3991.4,3989.1,1.5797]
[1734447943191,1.5886,3991.1,3989.1,1.60475455]
[1734447943412,1.5886,3990.9,3989.1,1.5797]
[1734447943606,0.19331953,3990.8,3989.2,0.17458783]
[1734447943754,0.22895428,3990.8,3989.2,0.17458783]
[1734447944157,0.22895428,3990.8,3989.4,0.12564768]
[1734447944409,0.19762752,3990.8,3989.4,0.12564768]
[1734447944703,0.22895429,3990.8,3989.6,3.0]
[1734447944848,0.22895429,3990.8,3989.6,0.31256477]
[1734447945050,1.5886,3990.7,3989.6,3.0]
[1734447945281,0.0313268,3990.6,3989.6,3.0]
[1734447945482,0.0346119,3990.6,3989.4,0.12564768]
[1734447946806,0.0346119,3990.6,3989.5,0.02505337]
[1734447947093,0.0346119,3990.6,3989.6,1.6256]
[1734447947299,1.5206,3991.2,3989.7,0.20268656]
[1734447947444,1.5206,3991.2,3989.7,0.75268656]
[1734447947795,0.03347203,3991.1,3989.7,0.75268656]
[1734447948349,0.03347203,3991.1,3989.7,3.7276301]
[1734447948894,1.5206,3991.2,3989.7,3.7276301]
[1734447948895,1.5206,3991.2,3989.7,0.7276301]
[1734447949043,1.5206,3991.2,3989.8,0.88732301]
[1734447949998,1.5206,3991.2,3989.9,0.55]
[1734447950170,1.5206,3992.3,3989.9,0.55]
[1734447950374,1.5206,3992.3,3990.3,0.12418326]
[1734447950570,0.03117854,3992.2,3990.4,0.01474507]
[1734447950861,0.06248999,3992.2,3990.3,0.12418326]
[1734447951149,1.5206,3992.1,3990.3,0.12418326]
[1734447951551,0.29299068,3992.2,3990.3,0.12418326]
[1734447951552,1.5206,3991.9,3990.3,0.12418326]
[1734447952095,1.5206,3991.7,3990.3,0.12418326]
[1734447952596,0.03118999,3991.6,3990.3,0.12418326]
[1734447954355,0.03118999,3991.6,3990.5,3.0]
[1734447954699,1.5206,3992.2,3990.6,2.37006665]
[1734447954904,1.5206,3992.2,3990.6,2.34501833]
[1734447955066,1.5206,3992.2,3990.7,3.0]
[1734447955857,1.5206,3992.2,3990.6,2.89501833]
[1734447955858,1.5206,3992.2,3990.6,2.34501833]
[1734447956178,1.5206,3992.2,3990.7,0.55]
[1734447956391,1.5206,3992.2,3990.8,0.60268606]
[1734447956796,1.5206,3992.2,3990.9,0.55]
[1734447957163,1.55191362,3992.1,3990.6,0.71941833]
[1734447957364,1.55191362,3992.1,3990.6,0.55]
[1734447957768,0.03132003,3992.0,3990.5,3.0]
[1734447958016,1.5206,3991.8,3990.5,3.0]
[1734447958513,1.5206,3991.6,3990.5,3.0]
[1734447958884,1.5206,3991.6,3990.6,1.6256]
[1734447959210,0.03016227,3991.5,3990.7,0.55]
[1734447959428,0.03016227,3991.5,3991.0,1.6256]
[1734447959584,1.5206,3992.7,3991.1,7.28756]
[1734447959919,2.55563141,3993.1,3991.4,1.6256]
[1734447960650,2.55563141,3993.1,3991.5,0.55]
[1734447961017,2.55563141,3993.1,3991.6,0.02504098]
[1734447961718,0.03120038,3993.0,3991.6,0.02504098]
[1734447961918,0.03120038,3993.0,3991.8,0.55]
[1734447962120,0.03120038,3993.0,3992.0,8.1199]
[1734447962419,1.5752,3994.1,3992.3,3.52]
[1734447962639,0.0299585,3992.9,3992.4,7.09503612]
[1734447962836,1.5752,3994.1,3992.4,3.55]
[1734447963041,1.5752,3994.1,3992.6,0.55]
[1734447963207,1.5752,3994.1,3992.6,0.57078205]
[1734447963923,1.5752,3995.3,3992.7,1.5999]
[1734447964138,1.5752,3995.3,3992.8,3.57122366]
[1734447964377,1.5752,3995.3,3992.9,1.5999]
[1734447964668,1.5752,3995.3,3993.1,1.5999]
[1734447964889,1.5752,3995.3,3993.3,1.5999]
[1734447965025,5.13504962,3995.4,3993.5,1.5999]
[1734447965226,5.13504962,3995.4,3993.8,1.5999]
[1734447965437,5.13504962,3995.4,3994.2,3.0]
[1734447965729,5.13504962,3995.4,3994.5,0.55]
[1734447966158,1.5004,3996.0,3994.5,0.55]
[1734447966482,0.03106178,3995.9,3994.4,4.643]
[1734447966691,0.03106178,3995.9,3994.5,0.02502691]
[1734447966844,1.5004,3996.0,3994.6,0.16680269]
[1734447967041,1.5004,3996.0,3994.7,0.55]
[1734447968004,1.5004,3996.6,3994.8,5.21802521]
[1734447968211,1.5004,3996.6,3995.0,0.55]
[1734447968357,1.5004,3998.5,3995.1,3.54502049]
[1734447968557,0.12562908,3998.2,3995.3,0.55]
[1734447968791,1.53167613,3998.1,3995.2,3.87380205]
[1734447969094,0.03200001,3998.0,3995.2,3.87380205]
[1734447969255,1.53167831,3997.9,3995.2,3.87380205]
[1734447969589,1.53167831,3997.9,3995.2,3.8988247]
[1734447969590,1.56367086,3997.9,3995.2,3.8988247]
[1734447969793,1.5004,3997.7,3995.3,0.74188247]
[1734447969996,0.03127831,3997.6,3995.2,0.02502265]
[1734447970196,1.5004,3997.5,3995.1,0.55]
[1734447970372,1.5004,3997.3,3994.6,1.80980269]
[1734447970553,0.5,3998.0,3994.7,0.02502571]
[1734447970554,0.03128213,3997.2,3994.7,0.02502571]
[1734447970754,1.5004,3997.1,3994.8,0.18348284]
[1734447970977,1.5004,3996.9,3994.8,0.18348284]
[1734447971364,1.5004,3996.7,3994.8,0.18348284]
[1734447971564,1.5004,3996.5,3994.8,0.18348284]
[1734447971993,1.5004,3996.5,3994.9,0.0250257]
[1734447972213,2.75074,3998.9,3994.9,0.0250257]
[1734447972214,1.5004,3998.1,3995.0,3.0]
[1734447972390,1.79868514,3999.2,3994.9,3.5450257]
[1734447972391,1.66300291,3998.0,3995.1,5.34086922]
[1734447972554,1.69509921,3998.0,3995.2,3.0]
[1734447972757,1.66300291,3998.0,3995.4,1.643]
[1734447972979,0.03105551,3997.9,3995.5,0.02501838]
[1734447973177,0.03105551,3997.9,3995.7,3.0]
[1734447973373,0.06232503,3997.9,3995.9,1.643]
[1734447973616,1.53167331,3997.8,3995.9,1.643]
[1734447973810,1.53167331,3997.8,3995.5,1.643]
[1734447975113,1.5004,3997.8,3995.6,0.57502256]
[1734447975322,0.0310406,3997.7,3995.6,0.57502256]
[1734447975624,1.5004,3997.6,3995.7,0.25918433]
[1734447975793,1.5004,3997.6,3995.8,1.643]
[1734447975988,1.5004,3997.6,3995.9,0.025016]
[1734447976377,1.5004,3997.6,3995.7,0.23416451]
[1734447976378,0.03102569,3997.5,3996.0,1.643]
[1734447976590,1.5004,4000.0,3996.2,1.643]
[1734447976793,1.5004,3999.5,3996.4,1.643]
[1734447977011,1.5004,3999.5,3996.6,1.5229]
[1734447977218,1.5004,3999.5,3996.8,1.5229]
[1734447977425,1.5709,3999.3,3996.8,1.5229]
[1734447977579,0.15316653,3999.9,3996.8,1.5229]
[1734447977580,1.60216385,3999.2,3996.8,1.5229]
[1734447977926,1.5709,3999.0,3996.9,0.15229]
[1734447978142,1.5709,3998.8,3996.9,0.15229]
[1734447978644,1.5709,3998.8,3997.1,0.12346511]
[1734447978780,1.5709,3998.8,3996.8,1.5229]
[1734447978781,1.60216667,3998.7,3996.4,1.5229]
[1734447978981,1.60216667,3998.7,3996.5,0.55]
[1734447979727,0.03210454,3998.6,3996.5,0.55]
[1734447979949,0.03210454,3998.6,3995.8,3.52]
[1734447979950,1.5709,3998.5,3995.9,1.54791557]
[1734447980081,1.73111695,3998.4,3996.0,0.54318405]
[1734447980427,1.79447862,3998.4,3995.9,1.5229]
[1734447980745,1.79447862,3998.4,3995.7,0.23416451]
[1734447980946,1.76320659,3998.4,3996.2,0.12732496]
[1734447981233,1.60217292,3998.3,3996.2,0.12732496]
[1734447981377,1.60298219,3998.3,3996.2,0.12732496]
[1734447981581,1.60298219,3998.3,3996.9,3.0]
[1734447981582,0.17631991,3998.2,3996.9,3.0]
[1734447981784,0.17631991,3998.2,3996.2,0.15234229]
[1734447982028,1.60298219,3998.3,3996.2,0.15234229]
[1734447982029,1.5709,3998.3,3996.3,1.5229]
[1734447982233,0.03161812,3998.1,3996.4,0.02501115]
[1734447982383,0.03126442,3998.2,3996.3,1.5229]
[1734447982722,1.5709,3998.3,3996.4,0.55]
[1734447982880,1.5709,3998.3,3996.4,0.57501431]
[1734447983080,1.5709,3998.3,3996.5,0.22252393]
[1734447983401,1.5709,3998.3,3997.8,3.0]
[1734447983717,1.5709,3998.3,3996.6,0.02501172]
[1734447983718,1.5709,3998.3,3996.6,0.57501172]
[1734447984334,1.5709,3998.3,3996.8,3.0]
[1734447984630,0.15316653,3999.9,3997.0,3.0]
[1734447984631,1.5709,3998.8,3997.0,3.0]
[1734447984840,0.15709,3998.7,3997.1,0.82929761]
[1734447985182,1.5709,3998.8,3997.1,0.82929761]
[1734447985383,1.5709,3999.3,3997.2,1.5229]
[1734447985712,1.5709,3999.3,3997.3,0.02500576]
[1734447985904,1.42679621,3999.3,3997.1,3.80429]
[1734447986102,1.42679621,3999.3,3997.6,1.5394]
[1734447986334,1.42679621,3999.3,3997.7,0.46622609]
[1734447986546,1.42679621,3999.3,3999.0,3.0]
[1734447986849,0.0312564,3999.2,3997.5,0.12286085]
[1734447986993,0.46513132,4000.6,3997.5,0.12286085]
[1734447987187,0.18387078,4000.5,3998.4,3.0]
[1734447987450,0.999168,4000.7,3997.5,0.12286085]
[1734447987451,0.21512757,4000.4,3997.5,0.12286085]
[1734447987744,0.18387078,4000.3,3997.5,0.12286085]
[1734447988043,0.21513116,4000.2,3997.5,0.12286085]
[1734447988258,0.18387078,4000.1,3997.5,0.12286085]
[1734447988397,0.21513131,4000.0,3997.6,0.55]
[1734447988746,0.18387078,3999.9,3997.6,0.55]
[1734447988889,1.6245,3999.7,3997.6,0.55]
[1734447989240,0.25,4000.3,3997.6,0.55]
[1734447989241,1.6245,3999.5,3997.6,0.55]
[1734447989395,1.6245,3999.3,3996.8,1.56441137]
[1734447989723,1.6245,3999.1,3996.8,1.56441137]
[1734447989925,1.8092713,3999.0,3996.8,1.56441137]
[1734447990125,1.6245,3999.0,3996.8,1.56441137]
[1734447990443,0.16557639,3999.6,3996.9,0.70644114]
[1734447990444,1.6245,3998.8,3996.9,0.70644114]
[1734447990644,1.6245,3998.8,3997.0,0.02501137]
[1734447991597,1.6245,4000.0,3997.5,1.5394]
[1734447991922,1.6245,4000.0,3997.8,1.5394]
[1734447992088,1.6245,4000.0,3997.9,0.02500201]
[1734447992426,1.6245,3999.8,3998.0,0.4564402]
[1734447992741,1.6245,3999.8,3998.0,0.48144408]
[1734447993708,0.03157995,3999.7,3998.0,0.48144408]
[1734447993907,1.6245,3999.8,3998.1,0.55]
[1734447994104,1.6245,3999.8,3998.3,1.5394]
[1734447994433,1.6245,3999.8,3998.4,0.23644033]
[1734447994733,1.6245,4001.5,3998.5,1.5394]
[1734447994894,0.998977,4001.6,3998.7,3.0]
[1734447994895,0.18535712,4001.4,3998.7,3.0]
[1734447995090,0.03124714,4002.7,3998.7,3.0]
[1734447995091,1.8411027,4001.3,3998.9,1.5394]
[1734447995405,1.6245,4001.1,3999.0,0.48142951]
[1734447995608,0.40121513,4001.2,3999.0,0.48142951]
[1734447995609,1.6245,4000.9,3999.0,0.48142951]
[1734447995806,0.1853008,4000.8,3999.0,0.48142951]
[1734447996118,0.21701878,4000.8,3999.1,0.55]
[1734447996434,1.6245,4000.9,3999.2,0.02498737]
[1734447996607,1.6245,4000.9,3999.3,0.40314264]
[1734447996926,1.6245,4000.9,3999.4,0.02498612]
[1734447997433,1.6245,4000.7,3997.5,3.52]
[1734447997617,1.6245,4000.5,3998.6,0.12435281]
[1734447997819,1.8409233,4000.4,3997.7,1.5394]
[1734447998031,1.8409233,4000.4,3997.8,0.02500619]
[1734447998032,1.6245,4000.2,3997.8,0.02500619]
[1734447998231,1.6245,4000.0,3998.2,0.125177]
[1734447998439,0.18516758,3999.9,3998.2,0.125177]
[1734447998614,1.6245,3999.8,3998.2,0.125177]
[1734447998959,0.18516758,4001.1,3998.2,0.125177]
[1734447998960,1.6245,3999.6,3998.2,0.125177]
[1734447999170,0.22897672,3999.7,3997.1,0.02500332]
[1734447999171,0.18515333,3999.5,3997.1,3.54500332]
[1734447999309,0.21725373,3999.5,3998.2,1.5394]
[1734447999507,0.21725373,3999.5,3998.1,0.12663806]
[1734447999508,1.6245,3999.4,3998.1,0.12663806]
[1734447999760,0.03147869,3999.3,3999.2,3.0]
[1734447999958,0.03147869,3999.3,3998.1,0.12663806]
[1734448000262,1.6245,3999.4,3998.1,0.15164201]
[1734448000465,1.6245,3999.4,3998.1,0.12663806]
[1734448000466,1.78695,3999.4,3998.1,0.12663806]
[1734448000754,1.78695,3999.4,3997.7,0.02500394]
[1734448000755,1.6245,3999.2,3997.1,1.5394]
[1734448000909,1.6245,3999.0,3997.5,0.12618174]
[1734448001110,1.6245,3998.8,3997.5,0.12618174]
[1734448001320,0.21752047,3998.7,3998.2,0.55]
[1734448001549,0.03228121,3998.7,3998.2,0.55]
[1734448001714,0.21762997,3998.7,3998.2,0.55]
[1734448001909,0.03228121,3998.7,3998.2,0.55]
[1734448002518,0.03228121,3998.7,3998.6,3.0]
[1734448002745,1.6245,3998.8,3997.5,0.15118915]
[1734448002921,1.6245,4001.2,3997.6,5.0594]
[1734448003106,0.55,4001.5,3999.8,3.0]
[1734448003107,1.97545618,4001.1,3999.8,3.0]
[1734448003310,1.97545618,4001.1,3998.5,1.5394]
[1734448003311,1.87300992,4001.0,3998.5,1.5394]
[1734448003540,1.87300992,4001.0,3998.0,1.56440087]
[1734448003541,1.6245,4000.8,3998.0,1.56440087]
[1734448003745,0.18538029,4000.9,3998.0,1.56440087]
[1734448003746,1.80988029,4000.7,3998.0,1.56440087]
[1734448003946,1.80988029,4000.6,3998.2,0.12402233]
[1734448004154,0.18538029,4000.5,3998.4,3.0]
[1734448004350,0.03260913,4000.5,3998.5,1.87928902]
[1734448004645,0.03260913,4000.5,3998.6,3.0]
[1734448004819,1.6245,4000.6,3998.7,0.02499207]
[1734448005025,0.18548803,4000.5,3998.7,0.02499207]
[1734448005227,0.18555769,4000.4,3998.7,0.02499207]
[1734448005416,0.18555769,4000.3,3998.8,0.83992937]
[1734448005614,0.03307101,4000.4,3998.9,0.02499376]
[1734448005846,1.6245,4000.6,3998.9,0.02499376]
[1734448006049,1.6245,4000.6,3998.8,0.83992937]
[1734448006050,0.18554838,4000.5,3998.8,0.83992937]
[1734448006347,1.81034838,4000.4,3998.8,0.83992937]
[1734448006511,0.998753,4002.0,3998.7,0.55]
[1734448006512,1.84159846,4000.3,3998.9,0.44149253]
[1734448006714,1.84356262,4000.2,3998.9,0.44149253]
[1734448006910,1.6248,4000.0,3998.9,0.44149253]
[1734448007106,1.6248,3999.8,3998.7,0.55]
[1734448007335,0.18555019,3999.7,3998.7,0.55]
[1734448007614,0.21850044,3999.6,3998.1,1.5026]
[1734448007833,0.18555019,3999.5,3998.1,1.52760276]
[1734448008035,1.6248,3999.8,3998.1,1.52760276]
[1734448008220,0.03289964,3999.4,3998.2,0.16595231]
[1734448008522,0.0328922,3999.3,3998.2,0.16595231]
[1734448008726,1.28218835,4001.1,3998.3,0.55]
[1734448008727,1.81034186,3999.2,3998.3,0.55]
[1734448008954,0.21807736,3999.1,3998.3,0.55]
[1734448009279,0.18554186,3999.0,3998.3,0.55]
[1734448009416,0.0325355,3999.1,3998.3,0.67305506]
[1734448009610,0.03221449,3998.9,3998.4,0.02500646]
[1734448009812,0.18558791,3999.0,3998.4,0.02500646]
[1734448009813,0.03222194,3999.0,3998.4,0.02500646]
[1734448010112,1.54868514,4001.1,3998.3,1.62565506]
[1734448010113,0.03122308,3998.9,3998.3,1.62565506]
[1734448010311,1.6248,3999.8,3998.4,0.18756616]
[1734448010526,0.0302275,3999.7,3998.4,0.18756616]
[1734448011309,1.81062166,3999.6,3998.5,0.55]
[1734448011555,0.21603427,3999.5,3998.5,0.55]
[1734448011711,0.18582166,3999.4,3998.5,0.55]
[1734448011918,1.6248,3999.6,3998.5,0.55]
[1734448011919,0.21601937,3999.3,3998.5,0.55]
[1734448012146,1.81062166,3999.2,3998.4,0.55]
[1734448012380,0.18582166,3999.1,3998.4,0.55]
[1734448012549,1.81062166,3999.0,3998.4,0.55]
[1734448012724,1.81062166,3999.0,3996.9,0.02500896]
[1734448012725,0.18582166,3998.9,3996.9,0.02500896]
[1734448013097,0.21598213,3998.8,3996.9,0.15156089]
[1734448013211,0.18582166,3998.7,3996.9,0.15156089]
[1734448013412,0.18582166,3998.6,3997.0,0.16541609]
[1734448013644,0.03014557,3998.6,3997.1,0.02500897]
[1734448013812,0.18590682,3998.5,3997.0,0.16541609]
[1734448014017,1.81070682,3998.4,3997.1,0.02501123]
[1734448014257,1.81070682,3998.4,3997.1,0.18195793]
[1734448014258,1.6248,3998.4,3997.1,0.18195793]
[1734448014438,0.02988325,3998.3,3997.1,0.18195793]
[1734448014772,1.6248,3998.1,3997.1,0.18195793]
[1734448015058,1.6248,3998.1,3995.6,1.03850366]
[1734448015059,1.6248,3997.9,3996.6,0.12625497]
[1734448015260,0.1859047,3997.8,3995.9,1.52761439]
[1734448015487,0.02984598,3997.8,3995.9,1.52761439]
[1734448015768,1.6248,3997.9,3997.0,0.12603761]
[1734448015932,1.03218835,3999.3,3997.0,0.12603761]
[1734448015933,1.6248,3999.3,3997.1,0.0250106]
[1734448016115,0.37703861,3999.2,3997.1,0.0250106]
[1734448016312,0.18586976,3999.1,3997.1,0.0250106]
[1734448016548,1.6248,3998.9,3997.2,0.02500716]
[1734448016951,0.02809649,3998.8,3997.0,3.12603761]
[1734448017153,0.02809649,3998.8,3997.1,0.02500817]
[1734448017373,1.6248,3998.7,3997.1,0.55]
[1734448017529,1.03218835,3999.7,3997.1,0.55]
[1734448017530,1.6248,3998.5,3997.1,0.55]
[1734448017730,1.6248,3998.3,3997.1,0.55]
[1734448017926,0.21423669,3998.2,3997.0,0.12603761]
[1734448018123,0.21423669,3998.2,3997.1,0.02501397]
[1734448018350,0.02840933,3998.2,3997.0,0.12603761]
[1734448018936,1.6248,3998.3,3997.0,0.12603761]
[1734448019449,1.6248,3998.3,3997.1,0.02501062]
[1734448019655,1.6248,3998.3,3997.1,0.57501062]
[1734448020266,0.01769992,3998.9,3997.3,0.55]
[1734448020415,0.01769992,3998.9,3997.4,0.56276106]
[1734448020416,1.6248,3998.8,3997.4,0.56276106]
[1734448020615,1.6248,3998.8,3997.5,0.0250075]
[1734448020840,0.01769992,3998.9,3997.5,0.0250075]
[1734448020841,0.02834444,3998.7,3997.5,0.0250075]
[1734448021063,0.02834444,3998.7,3997.7,3.0]
[1734448021213,0.01769992,3998.9,3997.9,3.0]
[1734448021417,0.01769992,3998.9,3998.2,1.5545]
[1734448021616,0.01769992,3998.9,3998.3,4.06349838]
[1734448021815,0.01769992,3998.9,3998.4,4.5545]
[1734448022057,0.01769992,3998.9,3998.5,0.0249948]
[1734448022230,0.01769992,3998.9,3998.6,4.5545]
[1734448022429,0.01769992,3998.9,3998.8,1.5545]
[1734448022659,0.01769992,3998.9,3998.8,26.743071]
[1734448022953,0.01769992,3998.9,3998.8,23.223071]
[1734448023118,0.01769992,3998.9,3998.8,17.570459]
[1734448023448,0.01769992,3998.9,3998.8,18.61115454]
[1734448023648,0.01769992,3998.9,3998.8,21.29663033]
[1734448023814,0.01769992,3998.9,3998.8,10.83094203]
[1734448024014,0.01769992,3998.9,3998.8,7.78997579]
[1734448024245,0.01769992,3998.9,3998.8,5.23383658]
[1734448024455,0.01769992,3998.9,3998.8,5.25883359]
[1734448024674,0.01769992,3998.9,3998.8,5.23383658]
[1734448024971,0.01769992,3998.9,3998.8,0.55]
[1734448025371,0.04589476,3998.9,3998.6,0.12791068]
[1734448025531,0.01769992,3998.9,3998.7,0.0250017]
[1734448026979,0.01769992,3998.9,3998.7,0.5750017]
[1734448027180,0.01769992,3998.9,3998.7,0.55]
[1734448027491,0.01769992,3998.9,3998.8,0.17185693]
[1734448027615,0.01769992,3998.9,3998.8,0.55]
[1734448028253,0.04691573,3998.9,3998.8,0.55]
[1734448028790,0.04691573,3998.9,3997.3,1.04065866]
[1734448028791,0.04691573,3998.9,3997.2,1.04065866]
[1734448028929,1.5593,3998.8,3997.0,1.04065866]
[1734448029276,1.5593,3998.8,3996.6,1.5545]
[1734448029277,1.5593,3998.6,3996.8,1.04065866]
[1734448029422,1.5593,3998.4,3996.9,0.41529142]
[1734448029621,0.17760992,3998.5,3996.9,0.41529142]
[1734448029622,0.03126633,3998.3,3996.9,0.41529142]
[1734448029976,0.03126633,3998.3,3996.1,5.0745]
[1734448029977,1.59056633,3998.3,3996.1,0.12814329]
[1734448030155,0.18546135,3998.2,3996.1,0.12814329]
[1734448030502,1.5593,3998.0,3996.1,0.12814329]
[1734448030766,0.03127435,3998.1,3996.0,0.41568376]
[1734448030767,1.5593,3997.8,3996.0,0.41568376]
[1734448030967,0.24471988,3997.9,3996.0,0.41568376]
[1734448030968,1.5593,3997.6,3996.0,0.41568376]
[1734448031171,1.5593,3997.4,3996.0,0.41568376]
[1734448031334,0.21673826,3997.5,3996.0,0.41568376]
[1734448031335,1.59057724,3997.3,3996.0,0.53793897]
[1734448031538,1.58682712,3997.2,3996.0,0.53793897]
[1734448031751,1.5593,3997.0,3996.0,0.53793897]
[1734448031952,0.02750475,3996.9,3996.0,0.53793897]
[1734448032152,0.02750475,3996.9,3996.5,3.0]
[1734448032321,0.02750475,3996.9,3996.0,0.53793897]
[1734448033019,1.5593,3996.8,3996.0,0.41568376]
[1734448033368,0.21744936,3996.7,3996.0,0.41568376]
[1734448033534,1.59057907,3996.6,3996.0,0.41568376]
[1734448033718,4.58990788,3997.8,3996.0,0.41568376]
[1734448033719,1.5593,3996.4,3996.0,0.41568376]
[1734448033920,1.5593,3996.2,3996.0,0.41568376]
[1734448034159,1.06347223,3997.3,3996.0,0.41568376]
[1734448034160,0.02744508,3996.1,3996.0,0.41568376]
[1734448034457,1.5593,3996.1,3996.0,0.41568376]
[1734448034662,1.71523,3996.1,3996.0,0.41568376]
[1734448034862,1.74133118,3996.1,3996.0,0.41568376]
[1734448035238,1.74133118,3996.1,3993.8,0.41564525]
[1734448035436,1.74133118,3996.1,3994.3,0.12732576]
[1734448035437,1.5593,3996.0,3994.3,0.12732576]
[1734448035833,0.02608626,3995.9,3994.3,0.12732576]
[1734448036135,1.5867,3995.8,3994.3,0.12732576]
[1734448036467,1.64406125,3995.7,3993.0,1.5359]
[1734448036668,1.64406125,3995.7,3993.1,0.02503343]
[1734448036830,1.64406125,3995.7,3993.0,1.5359]
[1734448036831,1.64406125,3995.7,3994.0,0.12402683]
[1734448037026,1.64406125,3995.7,3993.0,1.5359]
[1734448037236,5.14441953,3995.3,3993.0,0.12674165]
[1734448037541,1.5867,3995.1,3993.0,0.12335203]
[1734448037743,1.5867,3994.9,3992.0,1.66477414]
[1734448037953,1.5867,3994.9,3990.4,1.55775549]
[1734448037954,1.8367,3994.7,3991.5,1.5359]
[1734448038158,1.5867,3994.5,3992.2,0.12791322]
[1734448038356,1.5867,3994.5,3991.6,0.15359]
[1734448038357,1.5867,3994.3,3991.6,0.15359]
[1734448038531,0.46866616,3994.4,3991.0,1.5359]
[1734448038532,1.5867,3994.1,3991.0,1.5359]
[1734448038873,0.25,3994.4,3991.0,1.5359]
[1734448038874,1.5867,3993.9,3991.0,1.5359]
[1734448039030,1.61801014,3993.8,3991.0,1.5359]
[1734448039235,1.61801014,3993.8,3991.0,1.66310412]
[1734448039236,1.6411889,3993.8,3991.0,1.66310412]
[1734448039928,1.6411889,3993.8,3991.1,0.55]
[1734448040131,1.5867,3993.6,3991.2,0.24635854]
[1734448040331,1.61800798,3993.6,3991.2,0.22131041]
[1734448040933,1.61800798,3993.6,3991.3,0.55]
[1734448041135,0.16411889,3993.7,3991.3,0.55]
[1734448041136,1.5867,3993.4,3991.3,0.55]
[1734448041393,1.5867,3993.2,3991.3,0.55]
[1734448041535,1.5867,3993.1,3991.3,0.55]
[1734448042132,1.5867,3993.1,3990.8,0.15337495]
[1734448042335,1.5867,3993.1,3991.4,1.5359]
[1734448042673,1.5867,3993.1,3991.6,0.55]
[1734448042844,1.5867,3993.1,3991.7,0.0250444]
[1734448043026,1.5867,3993.1,3991.6,0.57504328]
[1734448043246,1.5867,3993.1,3991.6,0.55]
[1734448043647,1.5867,3993.1,3991.7,0.02504329]
[1734448044871,1.5867,3995.3,3991.7,0.02504329]
[1734448045074,1.77980008,3995.2,3991.9,3.55]
[1734448045251,1.77980008,3995.2,3992.1,3.0]
[1734448045583,1.77980008,3995.2,3992.3,1.5359]
[1734448045786,1.77980008,3995.2,3993.9,3.0]
[1734448046082,1.77980008,3995.2,3992.4,0.57503857]
[1734448046083,1.77980008,3995.2,3992.4,0.55]
[1734448046383,1.77980008,3995.2,3992.3,1.5359]
[1734448046384,1.5867,3995.0,3993.9,3.0]
[1734448046599,0.17798001,3995.1,3992.6,0.55]
[1734448046600,1.5867,3994.8,3992.6,0.55]
[1734448046799,1.5867,3994.6,3992.6,0.55]
[1734448047001,1.5867,3994.6,3992.7,0.02503729]
[1734448047200,1.5867,3994.6,3992.6,0.57503729]
[1734448047487,1.5867,3994.6,3992.7,0.02503239]
[1734448047897,1.5867,3994.6,3994.4,3.0]
[1734448048230,1.5867,3994.6,3992.7,0.02503239]
[1734448048502,1.5867,3994.6,3992.9,0.55]
[1734448048709,1.5867,3994.6,3993.0,0.02503524]
[1734448049384,1.5867,3994.6,3994.5,3.0]
[1734448049704,1.5867,3994.6,3992.9,0.55]
[1734448049909,0.03129575,3994.5,3992.8,0.55]
[1734448050503,1.5867,3994.6,3993.1,0.12577956]
[1734448050708,1.74537,3994.6,3993.1,0.12577956]
[1734448050923,1.49740137,3994.5,3993.1,0.12577956]
[1734448051124,1.4661,3994.5,3993.1,0.12577956]
[1734448052495,0.3777751,3996.0,3993.1,0.12577956]
[1734448052496,1.49739587,3994.4,3993.1,0.12577956]
[1734448052910,1.4661,3994.4,3993.1,0.12577956]
[1734448053142,1.4661,3994.2,3993.1,0.12577956]
[1734448053427,0.17791183,3994.3,3993.1,0.12577956]
[1734448053428,1.4661,3994.0,3993.1,0.12577956]
[1734448053630,1.4661,3993.9,3991.8,1.71134736]
[1734448053776,1.49740429,3993.8,3991.8,0.12974736]
[1734448054075,1.49740429,3993.8,3991.5,0.16598519]
[1734448054277,1.4661,3993.6,3991.5,0.16598519]
[1734448054522,1.49741051,3993.5,3990.4,5.1266484]
[1734448054717,1.49741051,3993.5,3990.5,0.04582311]
[1734448055289,1.69529351,3993.4,3990.5,0.04582311]
[1734448055489,1.4661,3993.2,3990.5,0.04582311]
[1734448055701,1.5193,3993.0,3990.5,0.04582311]
[1734448055908,1.5193,3992.8,3990.5,0.04582311]
[1734448056078,1.5193,3992.6,3990.5,0.04582311]
[1734448056279,1.5193,3992.4,3990.5,0.04582311]
[1734448057122,1.5193,3992.4,3991.0,0.12585545]
[1734448057411,1.5193,3992.4,3991.1,0.57505168]
[1734448057620,1.5193,3992.4,3991.1,0.55]
[1734448058914,1.5193,3992.4,3992.1,3.0]
[1734448059101,1.5193,3992.4,3991.1,0.55]
[1734448060482,1.5193,3992.4,3991.2,0.02504882]
[1734448060678,1.5193,3992.4,3991.1,0.55]
[1734448060880,1.5193,3992.4,3991.1,0.67833029]
[1734448063813,1.5193,3992.1,3991.1,0.12833029]
[1734448064011,1.5193,3992.1,3991.2,0.02505043]
[1734448064210,1.5193,3992.1,3991.3,0.16813059]
[1734448064518,1.5193,3992.1,3991.0,0.12585545]
[1734448065387,1.5193,3992.1,3990.8,0.02504773]
[1734448065684,1.5193,3992.1,3991.1,0.55]
[1734448066130,1.4534,3993.5,3991.1,0.55]
[1734448066326,1.4534,3993.3,3991.2,0.02504582]
[1734448066489,0.44837131,3993.2,3991.2,0.30250458]
[1734448066684,1.87046404,3993.1,3991.2,0.30250458]
[1734448066900,0.41706404,3993.0,3991.2,0.30250458]
[1734448067103,0.44837218,3992.9,3991.3,0.55]
[1734448067282,0.23170553,3992.8,3991.3,0.55]
[1734448067485,0.23170553,3992.7,3991.3,0.55]
[1734448067786,1.68510553,3992.6,3991.2,0.12633754]
[1734448067989,1.4534,3992.6,3991.2,0.02504657]
[1734448068385,1.4534,3994.0,3991.3,1.5047]
[1734448068603,0.4172333,3993.9,3991.5,1.5047]
[1734448068805,0.4172333,3993.8,3991.7,3.0]
[1734448069022,1.4534,3993.6,3991.7,3.0]